bitfinex-derivatives/quotes_ETHF0:USTF0_20250309
["timestamp","ask_amount","ask_price","bid_price","bid_amount"]
[1741542734326,0.98734,2025.8,2025.7,0.00738625]
[1741542735428,4.98734,2025.8,2025.7,6.25e-06]
[1741542735622,11.55034,2025.8,2025.7,6.25e-06]
[1741542735822,11.908,2025.8,2024.5,8.4743]
[1741542736029,0.98792,2024.6,2024.5,3.2078]
[1741542736237,4.11186,2024.8,2024.5,3.2078]
[1741542736423,3.124,2024.8,2024.5,3.2078]
[1741542736824,0.98791,2024.7,2024.5,3.2078]
[1741542737032,0.00740466,2024.9,2024.5,3.2078]
[1741542737340,1.345,2025.6,2025.0,0.9877]
[1741542737341,0.9876,2025.3,2025.0,0.9877]
[1741542737523,3.2078,2025.6,2024.4,7.06399713]
[1741542737524,3.2078,2025.6,2024.9,3.2078]
[1741542737728,0.98773,2025.0,2024.7,0.98785]
[1741542737929,3.125,2025.2,2024.8,0.9878]
[1741542738126,3.125,2025.2,2024.6,3.2078]
[1741542738328,3.2078,2025.0,2024.4,0.00496713]
[1741542738527,5.67713,2025.0,2024.4,0.00496713]
[1741542738835,3.2078,2024.7,2023.7,3.2078]
[1741542739137,0.98831,2023.8,2023.7,3.2078]
[1741542739535,0.98846,2023.5,2023.2,3.2078]
[1741542739730,0.98875,2022.9,2022.8,1.8034226]
[1741542740030,3.125,2023.5,2022.8,1.8034226]
[1741542740031,2.47128,2023.4,2022.8,1.8034226]
[1741542740225,0.00740466,2023.1,2022.6,3.61227291]
[1741542740429,0.99607466,2023.1,2022.7,0.98882]
[1741542740728,0.00740466,2023.1,2023.0,0.9887]
[1741542740924,6.3338,2024.2,2023.2,2.47153]
[1741542741129,0.40157171,2024.9,2024.5,0.98797]
[1741542741130,6.2904,2024.7,2024.5,0.98797]
[1741542741325,6.3338,2024.9,2024.0,3.2078]
[1741542741634,3.2078,2024.3,2023.3,15.1257]
[1741542741931,0.98878,2022.9,2022.6,3.2078]
[1741542742127,3.2078,2023.4,2022.6,3.2078]
[1741542742128,3.126,2023.3,2022.6,3.2078]
[1741542742328,0.98862,2023.2,2022.9,3.2078]
[1741542742525,0.98879,2022.9,2022.5,4.60473135]
[1741542742731,0.9889,2022.6,2022.5,3.21520466]
[1741542742930,3.2078,2023.1,2022.5,0.00740466]
[1741542743130,0.00740466,2023.2,2022.7,3.2078]
[1741542743326,0.9889,2022.6,2022.5,0.00740466]
[1741542743732,6.3348,2023.1,2022.5,0.00740466]
[1741542743935,0.00740466,2023.2,2022.5,0.00740466]
[1741542744134,0.00740466,2023.2,2023.0,3.2078]
[1741542744431,0.00740466,2023.2,2023.0,4.1965]
[1741542744632,0.00740466,2023.2,2022.7,14.8971]
[1741542744837,0.00740466,2023.2,2023.0,3.2078]
[1741542745039,0.00740466,2023.2,2022.7,11.6893]
[1741542745237,0.9889,2022.6,2022.5,0.00740466]
[1741542745436,0.9889,2022.6,2022.5,3.21520466]
[1741542745637,0.9889,2022.6,2022.5,0.00740466]
[1741542746340,7.3237,2022.6,2022.5,4.66e-06]
[1741542746539,11.3237,2022.6,2022.5,4.66e-06]
[1741542746736,4.1967,2022.6,2022.5,4.66e-06]
[1741542746940,0.9889,2022.6,2022.5,4.66e-06]
[1741542748035,0.98934,2021.7,2021.6,3.2078]
[1741542748235,1.345,2022.8,2021.6,3.2078]
[1741542748236,3.127,2022.0,2021.6,3.2078]
[1741542748430,3.127,2022.0,2021.4,5.68145]
[1741542748631,6.3856,2022.5,2021.2,4.52039102]
[1741542748632,3.2078,2022.5,2022.3,0.98905]
[1741542748838,3.127,2022.6,2022.1,3.2078]
[1741542749035,0.98856,2023.4,2023.0,0.98866]
[1741542749238,6.3348,2023.9,2023.2,3.2078]
[1741542749433,0.98856,2023.3,2023.2,3.2078]
[1741542749634,0.00740466,2023.4,2022.7,3.2078]
[1741542749832,0.98866,2023.1,2023.0,4.66e-06]
[1741542750132,0.00740466,2023.4,2023.0,4.66e-06]
[1741542750337,0.98866,2023.1,2023.0,4.66e-06]
[1741542750632,0.00740466,2023.4,2023.0,4.66e-06]
[1741542750836,0.00740466,2023.4,2023.0,3.20780466]
[1741542751243,4.19646,2023.1,2023.0,4.66e-06]
[1741542752238,0.98866,2023.1,2023.0,4.66e-06]
[1741542752847,0.00740466,2023.4,2023.0,4.66e-06]
[1741542753043,0.00740466,2023.4,2023.0,0.40799455]
[1741542753248,0.98866,2023.1,2023.0,4.66e-06]
[1741542754652,6.34320466,2023.4,2023.0,4.66e-06]
[1741542754958,0.98858,2023.3,2023.0,0.98867466]
[1741542755242,3.21520466,2023.4,2023.0,4.66e-06]
[1741542755445,0.98861,2023.2,2023.1,3.2078]
[1741542755645,0.00740466,2023.4,2023.3,0.98856]
[1741542755838,6.3358,2024.6,2023.3,8.589]
[1741542756037,6.3358,2024.6,2024.1,3.2078]
[1741542756245,6.3358,2024.6,2023.5,7.7968]
[1741542756442,6.3358,2024.6,2023.7,3.2078]
[1741542756639,6.3358,2024.6,2024.0,3.2078]
[1741542756945,2.47734466,2024.5,2024.0,3.2078]
[1741542757149,0.00740466,2024.5,2024.1,0.00740466]
[1741542757545,0.98807,2024.3,2024.2,3.2078]
[1741542757754,0.98805,2024.4,2024.2,4.19592]
[1741542758051,2.46949,2024.9,2024.2,4.19592]
[1741542758052,6.3358,2024.9,2024.2,3.61732127]
[1741542758253,2.46975,2024.7,2024.1,0.00740466]
[1741542758447,0.98812,2024.2,2024.1,0.00740466]
[1741542761156,3.2078,2024.3,2024.1,0.00740466]
[1741542761648,0.98812,2024.2,2024.1,0.00740466]
[1741542762146,3.2078,2024.3,2024.1,0.00740466]
[1741542762342,0.98812,2024.2,2024.1,0.00740466]
[1741542763253,3.13440466,2024.4,2024.2,0.98807]
[1741542763254,0.99545466,2024.4,2024.2,0.98807]
[1741542763446,0.00740466,2024.4,2024.1,0.00740466]
[1741542763649,0.98812,2024.2,2024.1,0.00740466]
[1741542764750,0.98812,2024.2,2024.1,3.21520466]
[1741542765253,0.00740466,2024.4,2024.1,3.21520466]
[1741542765451,0.98812,2024.2,2024.1,3.21520466]
[1741542766256,0.00740466,2024.4,2024.1,4.20333466]
[1741542766450,0.98812,2024.2,2024.1,3.21520466]
[1741542767252,3.2078,2024.7,2024.1,3.21520466]
[1741542767448,0.98812,2024.2,2024.1,8.21220466]
[1741542767651,2.46982,2024.6,2024.1,9.20037466]
[1741542768154,3.2078,2024.7,2024.1,8.21220466]
[1741542768347,3.2078,2024.7,2024.4,3.2078]
[1741542768553,0.99537466,2024.6,2024.4,4.19579]
[1741542768751,0.98797,2024.5,2024.4,4.19579]
[1741542768957,0.00740466,2024.6,2024.5,0.98797]
[1741542769156,3.126,2024.9,2024.7,0.98784]
[1741542769352,3.126,2024.9,2024.7,0.98786]
[1741542769656,3.126,2024.9,2024.2,6.3027]
[1741542769657,6.3338,2024.9,2024.2,6.3027]
[1741542770045,3.126,2024.9,2024.4,3.2078]
[1741542770250,0.00740466,2024.8,2024.4,3.2078]
[1741542770457,0.98789,2024.7,2024.6,0.98791]
[1741542770647,0.98797,2024.5,2024.2,6.3027]
[1741542770850,0.00740466,2024.8,2024.4,3.2078]
[1741542771045,0.98797,2024.5,2024.4,4.19581]
[1741542771249,0.00740466,2024.8,2024.4,3.2078]
[1741542771451,0.00740466,2024.8,2024.4,4.19579]
[1741542771659,0.00740466,2024.8,2024.4,3.2078]
[1741542771849,0.00740466,2024.8,2024.1,5.00440466]
[1741542771850,2.46984,2024.6,2024.1,3.21520466]
[1741542772257,0.98799,2024.5,2024.3,0.98805]
[1741542772550,0.98799,2024.5,2024.1,3.21520466]
[1741542772551,0.00740466,2024.8,2024.1,3.21520466]
[1741542772757,0.00740466,2024.8,2024.1,4.20334466]
[1741542772758,2.46984,2024.6,2024.1,4.20334466]
[1741542772961,0.00740466,2024.8,2024.1,3.21520466]
[1741542773255,3.2078,2025.5,2024.7,5.67746]
[1741542773457,3.125,2025.7,2025.0,3.2078]
[1741542773759,7.5317,2026.1,2025.0,3.2078]
[1741542773760,6.1867,2026.1,2025.7,2.46848]
[1741542774060,3.2078,2026.6,2026.0,2.46811]
[1741542774253,6.3328,2027.2,2026.3,3.2078]
[1741542774555,9.3117,2027.5,2026.7,3.2078]
[1741542774855,3.2078,2027.3,2026.4,4.8478]
[1741542775055,0.987,2026.5,2026.3,3.3523243]
[1741542775256,0.98693,2026.7,2026.3,0.4033243]
[1741542775453,0.98705,2026.4,2026.3,0.4033243]
[1741542775652,0.98714,2026.2,2026.1,22.17740466]
[1741542775851,0.98714,2026.2,2026.1,0.00740466]
[1741542776156,0.00493182,2026.7,2026.1,0.00740466]
[1741542776364,3.12993182,2026.7,2026.1,0.00740466]
[1741542776657,0.00493182,2026.7,2026.6,0.98695]
[1741542776857,3.2078,2027.7,2026.4,25.3708]
[1741542777057,3.124,2027.6,2026.4,28.3198]
[1741542777254,3.2078,2027.4,2026.5,4.9328]
[1741542777465,0.98681,2026.9,2026.5,4.9328]
[1741542777659,3.2078,2027.4,2026.5,4.9328]
[1741542777860,0.98689,2026.8,2026.5,4.9328]
[1741542778059,2.46653,2027.3,2026.5,4.9328]
[1741542778256,2.46653,2027.3,2026.7,3.2078]
[1741542778661,0.98685,2026.8,2026.7,3.2078]
[1741542779363,0.98683,2026.9,2026.7,3.2078]
[1741542779664,0.98684,2026.9,2026.7,3.2078]
[1741542779963,0.98685,2026.8,2026.7,3.2078]
[1741542780161,4.11068,2027.2,2026.7,3.2078]
[1741542780362,3.2078,2027.4,2026.7,3.2078]
[1741542780757,0.98672,2027.1,2026.8,0.98685]
[1741542780959,0.987,2026.5,2026.4,3.2078]
[1741542781268,3.123,2027.0,2026.9,0.9868]
[1741542781470,0.9867,2027.2,2026.7,3.2078]
[1741542781661,3.122,2027.3,2026.7,3.2078]
[1741542781867,0.98685,2026.8,2026.7,3.2078]
[1741542782260,3.2078,2027.1,2026.7,3.2078]
[1741542782463,4.19453,2027.1,2026.8,0.98682]
[1741542782661,3.2078,2027.1,2026.8,0.98685]
[1741542782866,3.2078,2027.1,2026.7,3.2078]
[1741542783067,0.98678,2027.0,2026.7,3.2078]
[1741542783372,0.98685,2026.8,2026.7,3.2078]
[1741542783568,8.79701,2026.8,2026.1,2.95640466]
[1741542783767,0.98714,2026.2,2026.1,0.00740466]
[1741542784068,3.2078,2026.5,2026.1,0.00740466]
[1741542784269,0.98706,2026.4,2026.1,0.99455466]
[1741542784469,0.98714,2026.2,2026.1,0.00740466]
[1741542785066,3.2078,2026.6,2026.1,4.00740466]
[1741542785266,0.98706,2026.4,2026.2,3.2078]
[1741542785467,3.122,2026.8,2026.2,3.2078]
[1741542785771,0.98707,2026.4,2026.2,4.19494]
[1741542786172,0.98709,2026.3,2026.2,3.2078]
[1741542786362,2.46738,2026.6,2026.1,0.00740466]
[1741542786571,2.46738,2026.6,2025.4,2.1336]
[1741542786572,3.121,2026.3,2025.2,2.949]
[1741542786764,3.2078,2025.6,2025.0,3.2078]
[1741542787068,3.121,2025.5,2025.0,3.2078]
[1741542787269,0.98768,2025.1,2025.0,3.2078]
[1741542787464,5.58972,2025.5,2025.0,3.2078]
[1741542787465,3.121,2025.5,2025.0,3.2078]
[1741542787667,0.99501466,2025.3,2025.0,4.19549]
[1741542787976,0.98768,2025.1,2025.0,3.2078]
[1741542788275,0.00740466,2025.3,2025.0,3.2078]
[1741542788671,0.98766,2025.2,2025.0,3.2078]
[1741542788872,0.98768,2025.1,2025.0,3.2078]
[1741542789465,3.21520466,2025.3,2024.8,2.95640466]
[1741542789670,0.98778,2024.9,2024.8,2.95640466]
[1741542792073,0.98778,2024.9,2024.8,0.00740466]
[1741542792278,4.0,2024.9,2024.3,2.949]
[1741542792576,0.98817,2024.1,2024.0,5.37]
[1741542793780,0.00740466,2024.3,2024.0,5.37]
[1741542794168,9.5894,2024.9,2024.2,3.2078]
[1741542794385,4.10979,2024.9,2024.7,0.98786]
[1741542794570,3.122,2024.9,2024.5,3.2078]
[1741542794775,0.98792,2024.6,2024.4,0.988]
[1741542794977,3.122,2024.9,2024.3,2.949]
[1741542795178,0.98793,2024.6,2024.4,0.988]
[1741542795478,0.00740466,2024.8,2024.3,6.1568]
[1741542796078,0.98802,2024.4,2024.3,2.949]
[1741542796373,0.98802,2024.4,2024.0,11.20599]
[1741542796374,2.46982,2024.6,2024.0,6.1568]
[1741542796582,0.98815,2024.2,2024.0,6.1568]
[1741542796882,0.98814,2024.2,2024.0,6.1568]
[1741542797081,0.98817,2024.1,2024.0,6.1568]
[1741542797379,3.122,2024.4,2024.0,6.1568]
[1741542797569,0.98812,2024.2,2024.0,7.145]
[1741542797770,3.122,2024.4,2024.0,6.1568]
[1741542798084,0.00740466,2024.8,2024.3,3.2078]
[1741542798275,3.122,2025.2,2024.7,3.2078]
[1741542798475,3.122,2025.2,2024.2,11.718]
[1741542798476,3.2078,2025.0,2024.4,3.2078]
[1741542798672,0.98789,2024.7,2024.5,0.98795]
[1741542798876,0.98789,2024.7,2024.4,3.2078]
[1741542798877,4.9368,2025.4,2024.6,2.46977]
[1741542799075,0.98773,2025.0,2024.9,3.2078]
[1741542799580,6.3298,2025.9,2024.9,10.1568]
[1741542799883,6.3298,2026.2,2025.6,3.2078]
[1741542800084,3.2078,2026.2,2025.6,6.1568]
[1741542800376,0.98721,2026.1,2026.0,3.2078]
[1741542800577,0.98719,2026.1,2026.0,3.2078]
[1741542800782,0.98739,2025.7,2025.6,2.949]
[1741542800987,0.98744,2025.6,2025.5,3.2078]
[1741542801377,0.98748,2025.5,2025.4,2.949]
[1741542801783,0.98753,2025.4,2025.3,0.00740466]
[1741542802579,3.2078,2025.8,2025.3,0.61371728]
[1741542802986,6.3298,2026.1,2025.3,0.61371728]
[1741542803183,2.46811,2026.0,2025.4,0.60631262]
[1741542803584,6.3298,2026.1,2025.4,0.60631262]
[1741542803785,0.98748,2025.5,2025.3,0.00740466]
[1741542804086,4.19517,2025.8,2025.5,0.98747]
[1741542804279,3.2078,2025.8,2025.3,0.00740466]
[1741542804591,3.2078,2026.1,2025.9,0.98725]
[1741542804883,4.19502,2026.1,2025.9,0.98727]
[1741542805086,4.19502,2026.1,2026.0,0.60662205]
[1741542805784,3.2078,2026.1,2026.0,0.60662205]
[1741542805984,0.98701,2026.5,2026.0,7.55562205]
[1741542806186,0.98704,2026.5,2026.3,3.2078]
[1741542806482,3.121,2026.9,2026.3,3.2078]
[1741542806688,0.98705,2026.4,2026.3,3.2078]
[1741542806985,0.987,2026.5,2026.4,0.61402671]
[1741542807288,4.1948,2026.5,2026.4,0.61402671]
[1741542807498,4.1948,2026.5,2026.4,6.71e-06]
[1741542808193,8.1948,2026.5,2026.4,6.71e-06]
[1741542808687,4.1948,2026.5,2026.4,6.71e-06]
[1741542809385,8.1948,2026.5,2026.4,6.71e-06]
[1741542809686,4.1948,2026.5,2026.4,6.71e-06]
[1741542809888,8.1948,2026.5,2026.4,6.71e-06]
[1741542810281,0.98748,2025.5,2025.4,2.949]
[1741542810587,0.98768,2025.1,2025.0,2.949]
[1741542810888,3.12,2026.2,2025.1,2.46921]
[1741542811087,3.12,2026.2,2025.5,3.2078]
[1741542811390,0.00740466,2026.1,2026.0,0.98723]
[1741542811681,6.2698,2026.5,2026.0,0.98723]
[1741542811886,0.98673,2027.1,2026.4,3.2078]
[1741542812084,3.12,2027.3,2026.4,3.2078]
[1741542812288,3.12,2027.3,2026.7,3.2078]
[1741542812487,2.46665,2027.2,2026.4,6.1568]
[1741542812787,5.58655,2027.3,2026.4,6.1568]
[1741542813081,0.9869,2026.7,2026.6,0.00740466]
[1741542813584,0.98689,2026.8,2026.6,0.00740466]
[1741542813785,3.2078,2027.1,2026.6,0.00740466]
[1741542814283,0.9869,2026.7,2026.6,0.00740466]
[1741542815690,0.9869,2026.7,2026.6,4.66e-06]
[1741542815879,4.9869,2026.7,2026.6,4.66e-06]
[1741542816084,11.0996,2026.7,2026.6,4.66e-06]
[1741542817088,7.0996,2026.7,2026.6,4.66e-06]
[1741542817296,11.0996,2026.7,2026.6,4.66e-06]
[1741542817690,7.0996,2026.7,2026.6,4.66e-06]
[1741542817992,11.0996,2026.7,2026.6,4.66e-06]
[1741542818385,7.0996,2026.7,2026.6,4.66e-06]
[1741542818587,11.0996,2026.7,2026.6,4.66e-06]
[1741542820591,7.0996,2026.7,2026.6,4.66e-06]
[1741542821288,11.0996,2026.7,2026.6,4.66e-06]
[1741542824091,7.0996,2026.7,2026.6,4.66e-06]
[1741542824591,10.2176,2026.7,2026.6,4.66e-06]
[1741542825896,14.2176,2026.7,2026.6,4.66e-06]
[1741542826292,10.2176,2026.7,2026.6,4.66e-06]
[1741542826898,0.9869,2026.7,2026.6,4.66e-06]
[1741542827102,3.2078,2026.8,2026.6,4.66e-06]
[1741542827103,0.0074,2026.9,2026.6,3.20780466]
[1741542827401,3.2078,2027.2,2026.6,3.20780466]
[1741542827587,0.98686,2026.8,2026.7,0.9869]
[1741542827789,5.6745,2027.2,2026.6,3.20780466]
[1741542827998,3.117,2027.3,2026.6,3.20780466]
[1741542827999,0.9869,2026.7,2026.6,4.66e-06]
[1741542829191,4.9869,2026.7,2026.6,4.66e-06]
[1741542830701,0.98737,2025.8,2025.6,7.26102]
[1741542830901,8.79272,2026.2,2025.6,9.2226]
[1741542831096,0.98736,2025.8,2025.6,10.21001]
[1741542831300,2.46803,2026.1,2025.6,9.2226]
[1741542831503,8.79272,2026.2,2025.7,0.98737]
[1741542831701,8.79272,2026.2,2025.6,9.2226]
[1741542831702,0.98735,2025.8,2025.6,10.21740466]
[1741542831901,0.98732,2025.9,2025.7,0.98737]
[1741542832201,0.98737,2025.8,2025.6,10.21741466]
[1741542832600,8.79272,2026.2,2025.6,9.23000466]
[1741542832800,0.98732,2025.9,2025.7,0.98737]
[1741542833100,0.98723,2026.1,2025.9,0.98728]
[1741542833404,3.2078,2026.2,2025.8,3.2078]
[1741542833592,0.98721,2026.1,2025.9,0.98725]
[1741542833795,3.2078,2026.2,2025.8,3.2078]
[1741542833998,2.46799,2026.1,2025.6,6.28100466]
[1741542834206,0.98739,2025.7,2025.6,6.28100466]
[1741542834603,3.2078,2026.1,2025.6,6.28100466]
[1741542834802,0.9873,2025.9,2025.7,0.98735]
[1741542835006,0.98739,2025.7,2025.6,6.28100466]
[1741542835696,0.98739,2025.7,2025.6,0.00740466]
[1741542837306,0.98739,2025.7,2025.6,4.66e-06]
[1741542840401,3.2078,2025.8,2025.7,0.98739]
[1741542840607,0.98739,2025.7,2025.6,4.66e-06]
[1741542842405,3.2078,2025.8,2025.7,0.98739]
[1741542842600,0.00740466,2025.9,2025.8,0.98734]
[1741542842801,6.3238,2026.5,2025.8,10.9865]
[1741542843001,6.3238,2026.5,2025.9,0.98727]
[1741542843002,0.98722,2026.1,2025.9,0.98727]
[1741542843306,0.98724,2026.0,2025.9,0.98727]
[1741542843506,6.3238,2026.5,2025.8,13.9355]
[1741542843805,0.98739,2025.7,2025.6,4.66e-06]
[1741542845017,4.98739,2025.7,2025.6,4.66e-06]
[1741542845912,6.33239,2025.7,2025.6,4.66e-06]
[1741542847511,6.73812645,2025.7,2025.6,4.66e-06]
[1741542848009,0.98787,2024.7,2024.6,5.1411]
[1741542848207,0.98807,2024.3,2024.2,5.7557]
[1741542848408,3.2078,2024.8,2024.2,10.8766]
[1741542848609,0.98807,2024.3,2024.2,10.8766]
[1741542848817,0.98807,2024.3,2024.2,5.1209]
[1741542849012,0.98807,2024.3,2023.7,5.7557]
[1741542849013,2.47019,2024.3,2023.7,5.7557]
[1741542849215,3.2078,2023.9,2023.6,5.1209]
[1741542849513,0.98836,2023.7,2023.6,5.1209]
[1741542849715,3.2078,2023.9,2023.5,0.00740466]
[1741542849917,4.19621,2023.6,2023.5,0.00740466]
[1741542850610,4.19621,2023.6,2023.5,4.66e-06]
[1741542850815,2.4712,2023.5,2022.3,3.2078]
[1741542851116,3.2078,2023.0,2022.3,3.608712]
[1741542851418,0.98896,2022.5,2022.3,3.608712]
[1741542851619,0.98896,2022.5,2022.3,3.2078]
[1741542851918,3.115,2022.9,2022.2,0.98907]
[1741542851919,0.98905,2022.3,2022.2,0.00740466]
[1741542852314,4.19685,2022.3,2022.2,0.00740466]
[1741542852817,0.98905,2022.3,2022.2,0.00740466]
[1741542853417,6.3228,2022.4,2021.5,26.76239499]
[1741542853716,0.98939,2021.6,2021.5,3.2078]
[1741542853917,3.115,2021.8,2021.5,3.2078]
[1741542854717,4.10519,2022.1,2021.6,0.98939]
[1741542855021,3.116,2022.1,2021.5,3.2078]
[1741542855209,0.00740466,2022.6,2022.5,0.98895]
[1741542855521,0.00740466,2022.6,2022.3,3.2078]
[1741542855913,0.98907,2022.3,2022.0,4.19697]
[1741542856219,3.2078,2022.5,2022.0,4.19698]
[1741542856417,0.98907,2022.3,2022.0,4.19699]
[1741542856614,0.98914,2022.1,2022.0,3.2078]
[1741542856817,0.98931,2021.8,2021.5,3.93841]
[1741542857023,3.2078,2022.2,2021.4,9.51420466]
[1741542857319,0.98927,2021.9,2021.4,9.51420466]
[1741542857517,3.2078,2022.2,2021.4,10.50366466]
[1741542857717,0.98944,2021.5,2021.4,3.21520466]
[1741542858025,3.2078,2021.6,2021.0,3.2078]
[1741542858423,0.98954,2021.3,2021.0,4.19746]
[1741542858727,0.98954,2021.3,2020.5,2.949]
[1741542858728,6.3238,2021.3,2020.3,3.2078]
[1741542858927,0.98997,2020.5,2020.1,6.124]
[1741542859131,0.98992,2020.6,2020.1,5.53240698]
[1741542859324,0.99740334,2020.5,2020.1,6.13142334]
[1741542859624,0.99008,2020.2,2020.1,0.00742334]
[1741542859829,6.3238,2020.2,2019.5,3.2078]
[1741542860036,0.99015,2020.1,2019.5,3.2078]
[1741542860221,6.3238,2020.2,2019.5,3.2078]
[1741542860421,0.99031,2019.8,2019.5,3.2078]
[1741542860619,6.3238,2020.2,2019.5,3.2078]
[1741542860824,0.99025,2019.9,2019.5,4.1982]
[1741542861129,6.3238,2020.2,2019.8,3.2078]
[1741542861333,3.116,2020.2,2019.8,3.2078]
[1741542861631,3.116,2020.2,2019.6,0.00742334]
[1741542861632,6.3238,2020.2,2019.6,0.00742334]
[1741542861831,0.99025,2019.9,2019.6,0.00742334]
[1741542862127,3.116,2020.2,2019.6,0.00742334]
[1741542862626,0.00742334,2020.5,2020.0,3.2078]
[1741542862828,3.2078,2021.4,2020.4,2.47495]
[1741542863031,6.3248,2021.7,2020.9,4.19751]
[1741542863328,3.2078,2021.7,2020.9,3.2078]
[1741542863527,4.10731,2021.8,2021.3,3.2078]
[1741542863732,0.98937,2021.7,2021.3,0.98951]
[1741542863932,0.98937,2021.7,2020.9,3.118]
[1741542863933,3.2078,2022.0,2021.2,3.2078]
[1741542864125,3.2078,2022.0,2021.5,3.2078]
[1741542864126,0.00742334,2021.8,2021.5,3.2078]
[1741542864327,0.00742334,2021.8,2021.6,0.98937]
[1741542864628,0.00742334,2021.8,2021.3,0.00742334]
[1741542864629,0.00742334,2021.8,2021.3,3.21522334]
[1741542865130,0.98949,2021.4,2021.3,3.21522334]
[1741542865725,0.00742334,2021.8,2021.3,7.21522334]
[1741542865929,0.00742334,2021.8,2021.3,0.00742334]
[1741542866127,0.98946,2021.5,2021.3,0.00742334]
[1741542866329,0.98947,2021.5,2021.3,0.00742334]
[1741542866629,0.00742334,2021.8,2021.3,0.00742334]
[1741542866936,3.2078,2021.7,2021.3,0.00742334]
[1741542867134,0.98946,2021.5,2021.3,0.00742334]
[1741542867328,0.00742334,2021.8,2021.3,0.00742334]
[1741542867536,0.98934,2021.7,2021.6,3.2078]
[1741542867728,0.98946,2021.5,2021.3,0.00742334]
[1741542868135,0.00742334,2021.8,2021.3,0.00742334]
[1741542868429,0.00742334,2021.8,2021.7,0.98934]
[1741542868636,3.2078,2022.4,2021.7,0.98934]
[1741542868939,3.2078,2022.1,2021.4,2.949]
[1741542869233,0.98944,2021.5,2021.4,2.949]
[1741542869431,0.98944,2021.5,2021.3,3.21522334]
[1741542869633,5.58999,2022.0,2021.3,4.20475334]
[1741542869828,0.00742334,2021.6,2021.3,3.21522334]
[1741542870030,0.00742334,2021.6,2021.5,0.98944]
[1741542870430,0.00742334,2021.6,2021.5,4.98944]
[1741542870633,3.117,2022.3,2021.6,0.98937]
[1741542870837,3.117,2022.3,2021.5,3.2078]
[1741542871027,5.58965,2022.3,2021.5,3.2078]
[1741542871228,3.117,2022.3,2021.5,3.2078]
[1741542871423,0.98928,2021.9,2021.6,0.98938]
[1741542871629,0.00742334,2022.0,2021.5,3.2078]
[1741542871930,0.99664334,2022.0,2021.8,0.98929]
[1741542872131,0.00742334,2022.0,2021.8,3.2078]
[1741542872724,0.00742334,2022.0,2021.9,0.98924]
[1741542872930,0.98924,2021.9,2021.8,3.2078]
[1741542873131,0.00742334,2022.0,2021.5,6.1568]
[1741542873331,0.98926,2021.9,2021.7,0.98932]
[1741542873536,0.99664334,2022.0,2021.8,0.98926]
[1741542873733,0.99665334,2022.0,2021.5,6.1568]
[1741542873937,0.00742334,2022.0,2021.9,0.98924]
[1741542874130,0.00742334,2022.0,2021.9,4.19704]
[1741542874331,3.2078,2022.7,2021.9,8.19704]
[1741542874532,8.79598,2022.7,2022.2,3.2078]
[1741542874739,6.3238,2022.7,2022.3,3.2078]
[1741542874931,3.919,2023.2,2022.3,3.2078]
[1741542874932,2.47153,2023.2,2022.3,3.2078]
[1741542875133,8.7953,2023.3,2022.4,2.4725]
[1741542875438,2.47153,2023.2,2022.5,3.2078]
[1741542875635,0.98885,2022.7,2022.6,0.00742334]
[1741542875839,4.19665,2022.7,2022.6,0.00742334]
[1741542878233,0.98885,2022.7,2022.6,0.00742334]
[1741542879041,4.19665,2022.7,2022.6,0.00742334]
[1741542879229,0.98905,2022.3,2022.2,6.1568]
[1741542879633,2.47263,2022.3,2021.7,4.19712]
[1741542879829,0.98929,2021.9,2021.7,3.2078]
[1741542880039,0.98922,2022.0,2021.7,3.2078]
[1741542880334,2.47275,2022.2,2021.7,3.2078]
[1741542880637,0.98929,2021.8,2021.7,3.2078]
[1741542880838,0.98934,2021.7,2021.6,0.00742334]
[1741542881143,5.68813334,2022.1,2021.6,0.00742334]
[1741542881439,0.98934,2021.7,2021.6,0.00742334]
[1741542883042,0.98963,2021.1,2020.9,6.5546964]
[1741542883337,3.2078,2021.5,2020.9,6.5546964]
[1741542883538,0.98957,2021.3,2020.9,6.92323874]
[1741542883735,0.98941,2021.6,2021.4,0.98947]
[1741542884042,0.98936,2021.7,2021.5,0.98941]
[1741542884242,3.115,2021.8,2021.5,3.2078]
[1741542884543,0.98928,2021.9,2021.7,0.9893]
[1741542884744,0.98937,2021.7,2021.5,4.19722]
[1741542884943,5.68079,2022.0,2021.5,3.2078]
[1741542885239,0.98939,2021.6,2021.5,3.2078]
[1741542885437,1.345,2021.8,2021.4,2.11143]
[1741542885645,0.98973,2020.9,2020.8,1.64]
[1741542885946,0.98993,2020.5,2020.4,1.7775992]
[1741542886246,0.98993,2020.5,2020.2,0.40854623]
[1741542886247,0.99001,2020.4,2020.1,4.19791]
[1741542886440,3.115,2020.9,2020.1,3.61398493]
[1741542886642,3.2078,2021.2,2020.4,3.2078]
[1741542886840,0.98974,2020.9,2020.7,0.98981]
[1741542887038,3.114,2021.1,2020.4,3.2078]
[1741542887039,0.98979,2020.8,2020.6,0.98986]
[1741542887346,0.00742334,2021.0,2020.5,2.949]
[1741542887543,3.2078,2021.2,2020.5,6.9107]
[1741542888039,0.98988,2020.6,2020.5,6.9107]
[1741542888348,3.2078,2020.9,2020.5,6.9107]
[1741542888645,0.00742334,2020.9,2020.7,3.2078]
[1741542888943,0.98988,2020.6,2020.5,2.949]
[1741542889943,5.767,2020.6,2019.7,3.2078]
[1741542890145,0.99024,2019.9,2019.7,4.19811]
[1741542890346,3.2078,2020.2,2019.4,3.2078]
[1741542890645,0.99031,2019.8,2019.5,0.99039]
[1741542890844,3.115,2020.1,2019.5,0.99039]
[1741542891047,0.00742334,2019.9,2019.7,3.2078]
[1741542891346,0.00742334,2019.9,2019.8,0.99027]
[1741542891945,3.2078,2020.6,2019.8,4.0]
[1741542892140,3.2078,2020.6,2020.0,3.2078]
[1741542892540,0.99003,2020.3,2020.1,0.9901]
[1741542892747,0.99,2020.4,2020.1,0.9901]